fUST/lending_fUST_20241018
["ID","MTS","AMOUNT","RATE_DAILY","PERIOD"]
[340438305,1729245044098,-307.121449,0.00011165,2]
[340438306,1729245044108,-307.121449,0.00011165,2]
[340438307,1729245044118,-307.121445,0.00011165,2]
[340438308,1729245044127,-447.97239,0.00011165,2]
[340438309,1729245044137,-447.97239,0.00011165,2]
[340438310,1729245044147,-447.97239,0.00011165,2]
[340438311,1729245044157,-447.97239,0.00011165,2]
[340438312,1729245044166,-447.97239,0.00011165,2]
[340438313,1729245044177,-447.97239,0.00011165,2]
[340438314,1729245044188,-447.97239,0.00011165,2]
[340438315,1729245044198,-447.97239,0.00011165,2]
[340438316,1729245044208,-447.97239,0.00011165,2]
[340438317,1729245044219,-447.97239,0.00011165,2]
[340438318,1729245044228,-447.97239,0.00011165,2]
[340438319,1729245044239,-447.97239,0.00011165,2]
[340438320,1729245044250,-447.97239,0.00011165,2]
[340438321,1729245044261,-447.97239,0.00011165,2]
[340438322,1729245044272,-447.97239,0.00011165,2]
[340438323,1729245044282,-447.97239,0.00011165,2]
[340438324,1729245044292,-447.97239,0.00011165,2]
[340438325,1729245044302,-447.97239,0.00011165,2]
[340438326,1729245044312,-447.97239,0.00011165,2]
[340438327,1729245044322,-447.972394,0.00011165,2]
[340438328,1729245044332,-245.991809,0.00011165,2]
[340438329,1729245044343,-245.991809,0.00011165,2]
[340438330,1729245044353,-245.991809,0.00011165,2]
[340438331,1729245044363,-245.991809,0.00011165,2]
[340438332,1729245044373,-245.991809,0.00011165,2]
[340438333,1729245044382,-245.991809,0.00011165,2]
[340438334,1729245044392,-245.991809,0.00011165,2]
[340438335,1729245044402,-245.991809,0.00011165,2]
[340438336,1729245044412,-245.991809,0.00011165,2]
[340438337,1729245044422,-245.991809,0.00011165,2]
[340438338,1729245044432,-245.991809,0.00011165,2]
[340438339,1729245044442,-245.991809,0.00011165,2]
[340438340,1729245044452,-245.991809,0.00011165,2]
[340438341,1729245044463,-245.991809,0.00011165,2]
[340438342,1729245044473,-245.991809,0.00011165,2]
[340438343,1729245044483,-245.991809,0.00011165,2]
[340438344,1729245044493,-245.991809,0.00011165,2]
[340438345,1729245044502,-245.991809,0.00011165,2]
[340438346,1729245044514,-245.991809,0.00011165,2]
[340438347,1729245044524,-245.991813,0.00011165,2]
[340438348,1729245044535,-874.73838461,0.00011191,2]
[340438349,1729245044546,-874.73838461,0.00011254,2]
[340438350,1729245044556,-151.0,0.00011255,2]
[340438351,1729245044567,-151.0,0.00011255,2]
[340438352,1729245044577,-151.0,0.00011255,2]
[340438353,1729245044588,-151.0,0.00011255,2]
[340438354,1729245044599,-151.0,0.00011255,2]
[340438355,1729245044608,-151.0,0.00011255,2]
[340438356,1729245044619,-151.0,0.00011255,2]
[340438357,1729245044631,-151.0,0.00011255,2]
[340438358,1729245044643,-151.0,0.00011255,2]
[340438359,1729245044654,-506.05435,0.00011255,2]
[340438360,1729245044665,-506.05435,0.00011255,2]
[340438361,1729245044677,-506.05435,0.00011255,2]
[340438362,1729245044688,-506.05435,0.00011255,2]
[340438363,1729245044699,-874.73838461,0.00011317,2]
[340438364,1729245044709,-500.0,0.0001134,2]
[340438365,1729245044719,-500.0,0.0001134,2]
[340438366,1729245044728,-501.99362584,0.0001134,2]
[340438367,1729245044738,-500.0,0.0001134,2]
[340438368,1729245044749,-500.0,0.0001134,2]
[340438369,1729245044760,-186.135,0.00011354,2]
[340438370,1729245044773,-9350.12471875,0.00011354,2]
[340438371,1729245044784,-500.0,0.00011367,2]
[340438372,1729245044794,-151.0,0.00011367,2]
[340438373,1729245044804,-443.568955,0.00011367,2]
[340438374,1729245044814,-443.568955,0.00011367,2]
[340438375,1729245044825,-501.34213029,0.00011367,2]
[340438376,1729245044836,-500.0,0.0001139,2]
[340438377,1729245044846,-500.0,0.0001139,2]
[340438378,1729245044860,-500.59326984,0.0001139,2]
[340438379,1729245044870,-436.83272879,0.0001139,2]
[340438380,1729245044879,-502.19649685,0.0001139,2]
[340438381,1729245044889,-1000.0,0.00011394,2]
[340438382,1729245044898,-591.32662608,0.00011417,2]
[340438383,1729245044908,-500.0,0.00011417,2]
[340438384,1729245044917,-500.0,0.00011417,2]
[340438385,1729245044928,-500.0,0.00011417,2]
[340438386,1729245044947,-8886.86957974,0.00011417,2]
[340438387,1729245044958,-333.67022292,0.00011417,2]
[340438388,1729245044970,-1000.0,0.00011417,2]
[340438389,1729245044981,-1500.0,0.00011434,2]
[340438390,1729245044992,-500.0,0.00011436,2]
[340438391,1729245045002,-500.0,0.00011436,2]
[340438392,1729245045014,-500.63774263,0.00011436,2]
[340438393,1729245045024,-495.36600512,0.00011436,2]
[340438394,1729245045036,-500.0,0.00011436,2]
[340438395,1729245045047,-500.99105765,0.00011436,2]
[340438397,1729245045353,-500.0,0.00011436,2]
[340438398,1729245045364,-153.0,0.00011441,2]
[340438399,1729245045375,-1000.0,0.00011444,2]
[340438401,1729245045386,-1112.34078926,0.00011444,2]
[340438402,1729245045396,-1487.68898068,0.00011457,2]
[340438403,1729245045406,-1000.0,0.00011464,2]
[340438404,1729245045416,-270.97862476,0.00011464,2]
[340438405,1729245045425,-1000.0,0.00011464,2]
[340438406,1729245045436,-503.37491479,0.00011467,2]
[340438407,1729245045445,-2000.0,0.00011481,2]
[340438408,1729245045460,-650.47520966,0.00011484,2]
[340438409,1729245045471,-1500.0,0.00011504,2]
[340438410,1729245045481,-1500.0,0.00011504,2]
[340438411,1729245045491,-2500.0,0.00011533,2]
[340438412,1729245045502,-2000.0,0.00011551,2]
[340438413,1729245045512,-2000.0,0.00011551,2]
[340438414,1729245045526,-151.0,0.00011551,2]
[340438415,1729245045537,-234.272922,0.00011551,2]
[340438416,1729245045547,-506.05435,0.00011551,2]
[340438417,1729245045557,-506.054346,0.00011551,2]
[340438418,1729245045568,-3000.0,0.00011589,2]
[340438419,1729245045578,-2481.61711574,0.00011602,2]
[340438420,1729245045589,-2500.0,0.00011602,2]
[340438421,1729245045598,-3500.0,0.00011648,2]
[340438422,1729245045608,-3000.0,0.00011658,2]
[340438423,1729245045619,-4000.0,0.0001171,2]
[340438424,1729245045628,-3500.0,0.00011718,2]
[340438425,1729245045638,-486.16059102,0.00011771,2]
[340438426,1729245045648,-4500.0,0.00011776,2]
[340438427,1729245045658,-2113.22349314,0.0001178,2]
[340438428,1729245045669,-925.33532058,0.000118,2]
[340438429,1729245045679,-279134.780336,0.000118,2]
[340438430,1729245045689,-500.0,0.00011822,2]
[340438431,1729245045698,-2948.63374894,0.00011843,2]
[340438432,1729245045708,-500.0,0.0001185,2]
[340438433,1729245045718,-151.0,0.000119,2]
[340438434,1729245045728,-443.568955,0.000119,2]
[340438435,1729245045738,-443.568955,0.000119,2]
[340438436,1729245045748,-146821.30179883,0.000119,2]
[340438442,1729245059789,-104559.91992317,0.000119,2]
[340438443,1729245059800,-401.13786,0.000119,2]
[340438444,1729245059810,-401.13786,0.000119,2]
[340438445,1729245059820,-151.0,0.000119,2]
[340438446,1729245059830,-700.095693,0.000119,2]
[340438447,1729245059840,-700.095693,0.000119,2]
[340438448,1729245059850,-420.0,0.00012049,2]
[340438449,1729245059860,-420.0,0.0001206,2]
[340438450,1729245059870,-151.0,0.00012188,2]
[340438451,1729245059883,-151.0,0.00012188,2]
[340438452,1729245059894,-151.0,0.00012188,2]
[340438453,1729245059905,-466.05802955,0.0001236,2]
[340438454,1729245059915,-151.0,0.0001239,2]
[340438455,1729245059926,-151.0,0.0001239,2]
[340438456,1729245059937,-151.0,0.00012392,2]
[340438457,1729245060155,-151.0,0.00012392,2]
[340438458,1729245060166,-151.0,0.00012395,2]
[340438459,1729245060175,-294.675389,0.00012395,2]
[340438460,1729245060185,-151.0,0.00012399,2]
[340438461,1729245060194,-151.0,0.000124,2]
[340438462,1729245060204,-151.0,0.000124,2]
[340438463,1729245060214,-151.0,0.000124,2]
[340438464,1729245060223,-151.0,0.000124,2]
[340438465,1729245060232,-151.0,0.000124,2]
[340438466,1729245060242,-151.0,0.000124,2]
[340438467,1729245060251,-151.310285,0.000124,2]
[340438468,1729245060260,-151.0,0.000124,2]
[340438469,1729245060270,-151.0,0.000124,2]
[340438470,1729245060280,-151.0,0.000124,2]
[340438471,1729245060290,-151.0,0.0001249,2]
[340438472,1729245060300,-151.0,0.0001249,2]
[340438473,1729245060309,-151.0,0.0001249,2]
[340438474,1729245060318,-188.167722,0.0001249,2]
[340438475,1729245060327,-8295.97221371,0.000125,2]
[340438476,1729245060337,-839.65647382,0.000125,2]
[340438477,1729245060347,-300.0,0.000125,3]
[340438478,1729245060356,-150.0,0.00012603,2]
[340438479,1729245060365,-200.0,0.0001284,2]
[340438480,1729245060374,-465.05290148,0.00012978,2]
[340438481,1729245060383,-1000.0,0.00013,7]
[340438482,1729245060392,-150.112233,0.00013,2]
[340438483,1729245060401,-150.112236,0.000131,2]
[340438484,1729245060411,-150.112233,0.000131,2]
[340438485,1729245060421,-150.112233,0.000131,2]
[340438486,1729245060430,-925.33532054,0.00013157,2]
[340438487,1729245060439,-150.112233,0.000132,2]
[340438488,1729245060449,-150.112233,0.000132,2]
[340438489,1729245060458,-170.45055192,0.00013205,2]
[340438490,1729245060467,-587.0,0.00013241,2]
[340438491,1729245060477,-587.0,0.00013266,2]
[340438492,1729245060486,-150.112233,0.000133,2]
[340438493,1729245060495,-150.112233,0.000133,2]
[340438494,1729245060504,-150.112233,0.000133,2]
[340438495,1729245060513,-150.112233,0.000133,2]
[340438496,1729245060522,-5055.81566465,0.00013365,2]
[340438497,1729245060533,-184105.09565974,0.00013365,2]
[340438498,1729245060542,-13180.5787036,0.000134,2]
[340438499,1729245060551,-150.112233,0.000134,2]
[340438500,1729245060560,-150.112233,0.000134,2]
[340438501,1729245060570,-150.112236,0.000134,2]
[340438502,1729245060580,-301.8354596,0.00013425,2]
[340438503,1729245060589,-44980.33102263,0.000135,2]
[340438504,1729245060598,-150.112233,0.000135,2]
[340438505,1729245060607,-150.112233,0.000135,2]
[340438506,1729245060616,-296.417512,0.000135,2]
[340438507,1729245060626,-443.568955,0.000135,2]
[340438508,1729245060635,-443.568955,0.000135,2]
[340438509,1729245060646,-150.112233,0.000135,2]
[340438510,1729245060656,-3639.42316577,0.00013561,2]
[340438511,1729245060666,-829.212548,0.00013569,2]
[340438512,1729245060675,-1000.120213,0.00013569,2]
[340438513,1729245060684,-160.0,0.00013579,3]
[340438514,1729245060694,-150.112233,0.000136,2]
[340438515,1729245060703,-150.112233,0.000136,2]
[340438516,1729245060713,-150.112233,0.000136,2]
[340438517,1729245060722,-150.112233,0.000136,2]
[340438518,1729245060731,-150.185035,0.000136,2]
[340438519,1729245060740,-151.0,0.0001362,2]
[340438520,1729245060749,-465.00264507,0.00013627,2]
[340438521,1729245060759,-500.0,0.00013673,2]
[340438522,1729245060768,-500.0,0.00013673,2]
[340438523,1729245060778,-364.6687223,0.00013673,2]
[340438524,1729245060787,-500.0,0.00013673,2]
[340438525,1729245060796,-500.0,0.00013673,2]
[340438526,1729245060805,-470.33097907,0.00013673,2]
[340438527,1729245060815,-500.0,0.00013673,2]
[340438528,1729245060824,-500.0,0.00013673,2]
[340438529,1729245060834,-500.0,0.00013673,2]
[340438530,1729245060843,-500.0,0.00013673,2]
[340438531,1729245060853,-500.0,0.00013673,2]
[340438532,1729245060862,-500.0,0.00013673,2]
[340438533,1729245060871,-500.44995083,0.00013673,2]
[340438534,1729245060884,-500.0,0.00013673,2]
[340438535,1729245060894,-500.0,0.00013673,2]
[340438536,1729245060903,-500.0,0.00013673,2]
[340438537,1729245060912,-500.0,0.00013673,2]
[340438538,1729245060923,-509.27377175,0.00013673,2]
[340438539,1729245060935,-500.0,0.00013673,2]
[340438540,1729245060945,-543.13367271,0.00013673,2]
[340438541,1729245060954,-500.0,0.00013673,2]
[340438542,1729245060964,-500.0,0.00013698,2]
[340438543,1729245060974,-500.0,0.00013698,2]
[340438544,1729245060983,-500.0,0.00013698,2]
[340438545,1729245060992,-500.0,0.00013698,2]
[340438546,1729245061001,-500.0,0.00013698,2]
[340438547,1729245061010,-500.0,0.00013698,2]
[340438548,1729245061020,-500.0,0.00013698,2]
[340438549,1729245061030,-500.0,0.00013698,2]
[340438550,1729245061040,-500.0,0.00013698,2]
[340438551,1729245061049,-500.0,0.00013698,2]
[340438552,1729245061059,-500.0,0.00013698,2]
[340438553,1729245061069,-500.0,0.00013698,2]
[340438554,1729245061078,-500.0,0.00013698,2]
[340438555,1729245061088,-500.0,0.00013698,2]
[340438556,1729245061098,-500.0,0.00013698,2]
[340438557,1729245061107,-500.0,0.00013698,2]
[340438558,1729245061116,-500.0,0.00013698,2]
[340438559,1729245061126,-500.0,0.00013698,2]
[340438560,1729245061135,-500.0,0.00013698,2]
[340438561,1729245061144,-500.0,0.00013698,2]
[340438562,1729245061154,-500.0,0.00013698,2]
[340438563,1729245061163,-500.0,0.00013698,2]
[340438564,1729245061172,-500.0,0.00013698,2]
[340438565,1729245061182,-500.0,0.00013698,2]
[340438566,1729245061191,-500.0,0.00013698,2]
[340438567,1729245061200,-500.0,0.00013698,2]
[340438568,1729245061210,-500.0,0.00013698,2]
[340438569,1729245061219,-500.0,0.00013698,2]
[340438570,1729245061229,-500.0,0.00013698,2]
[340438571,1729245061238,-500.0,0.00013698,2]
[340438572,1729245061248,-500.0,0.00013698,2]
[340438573,1729245061257,-500.0,0.00013698,2]
[340438574,1729245061267,-500.0,0.00013698,2]
[340438575,1729245061276,-500.0,0.00013698,2]
[340438576,1729245061285,-500.0,0.00013698,2]
[340438577,1729245061295,-500.0,0.00013698,2]
[340438578,1729245061304,-500.0,0.00013698,2]
[340438579,1729245061313,-500.0,0.00013698,2]
[340438580,1729245061322,-500.0,0.00013698,2]
[340438581,1729245061332,-500.0,0.00013698,2]
[340438582,1729245061341,-500.0,0.00013698,2]
[340438583,1729245061351,-500.0,0.00013698,2]
[340438584,1729245061360,-500.0,0.00013698,2]
[340438585,1729245061370,-500.0,0.00013698,2]
[340438586,1729245061379,-500.0,0.00013698,2]
[340438587,1729245061388,-500.0,0.00013698,2]
[340438588,1729245061398,-585.49403178,0.00013698,2]
[340438589,1729245061407,-500.0,0.00013698,2]
[340438590,1729245061417,-500.0,0.00013698,2]
[340438591,1729245061426,-500.0,0.00013698,2]
[340438592,1729245061435,-500.0,0.00013698,2]
[340438593,1729245061445,-500.0,0.00013698,2]
[340438594,1729245061456,-500.0,0.00013698,2]
[340438595,1729245061466,-300.00000001,0.00013698,2]
[340438596,1729245061475,-500.0,0.00013698,2]
[340438597,1729245061484,-500.0,0.00013698,2]
[340438598,1729245061493,-500.0,0.00013698,2]
[340438599,1729245061502,-500.0,0.00013698,2]
[340438600,1729245061511,-500.0,0.00013698,2]
[340438601,1729245061520,-500.0,0.00013698,2]
[340438602,1729245061533,-500.0,0.00013698,2]
[340438603,1729245061543,-500.0,0.00013698,2]
[340438604,1729245061552,-500.0,0.00013698,2]
[340438605,1729245061561,-500.0,0.00013698,2]
[340438606,1729245061570,-481.75532895,0.00013698,2]
[340438607,1729245061579,-500.0,0.00013698,2]
[340438608,1729245061588,-360.80711373,0.00013698,2]
[340438609,1729245061597,-260.2024851,0.00013698,2]
[340438610,1729245061606,-400.98557321,0.00013698,2]
[340438611,1729245061616,-500.0,0.00013698,2]
[340438612,1729245061625,-500.0,0.00013698,2]
[340438613,1729245061635,-500.0,0.00013698,2]
[340438614,1729245061644,-500.0,0.00013698,2]
[340438615,1729245061654,-500.0,0.00013698,2]
[340438616,1729245061663,-448.68299038,0.00013698,2]
[340438617,1729245061673,-400.0,0.00013698,2]
[340438618,1729245061682,-500.0,0.00013698,2]
[340438619,1729245061692,-500.0,0.00013698,2]
[340438620,1729245061701,-373.75843536,0.00013698,2]
[340438621,1729245061710,-500.0,0.00013698,2]
[340438622,1729245061719,-500.0,0.00013698,2]
[340438623,1729245061728,-511.44973486,0.00013698,2]
[340438624,1729245061738,-569.08207164,0.00013698,2]
[340438625,1729245061747,-500.0,0.00013698,2]
[340438626,1729245061756,-500.0,0.00013698,2]
[340438627,1729245061766,-500.0,0.00013698,2]
[340438628,1729245061776,-430.0876959,0.00013698,2]
[340438629,1729245061786,-500.0,0.00013698,2]
[340438630,1729245061795,-500.0,0.00013698,2]
[340438631,1729245061805,-519.39085501,0.00013698,2]
[340438632,1729245061815,-508.76165655,0.00013698,2]
[340438633,1729245061823,-517.82502172,0.00013698,2]
[340438634,1729245061833,-500.0,0.00013698,2]
[340438635,1729245061843,-500.0,0.00013698,2]
[340438636,1729245061852,-500.0,0.00013698,2]
[340438637,1729245061862,-510.39747329,0.00013698,2]
[340438638,1729245061871,-500.0,0.00013698,2]
[340438639,1729245061884,-500.0,0.00013698,2]
[340438640,1729245061893,-500.0,0.00013698,2]
[340438641,1729245061904,-318.80061191,0.00013698,2]
[340438642,1729245061913,-500.0,0.00013698,2]
[340438643,1729245061923,-500.0,0.00013698,2]
[340438644,1729245061933,-500.0,0.00013698,2]
[340438645,1729245061943,-2919.28,0.00013698,2]
[340438646,1729245061953,-500.0,0.00013698,2]
[340438647,1729245061964,-500.0,0.00013698,2]
[340438648,1729245061974,-500.0,0.00013698,2]
[340438649,1729245061983,-500.0,0.00013698,2]
[340438650,1729245061993,-282.34363289,0.00013698,2]
[340438651,1729245062003,-500.0,0.00013698,2]
[340438652,1729245062012,-510.50112747,0.00013698,2]
[340438653,1729245062021,-500.0,0.00013698,2]
[340438654,1729245062033,-512.79680559,0.00013698,2]
[340438655,1729245062041,-500.0,0.00013698,2]
[340438656,1729245062051,-500.0,0.00013698,2]
[340438657,1729245062060,-500.0,0.00013698,2]
[340438658,1729245062069,-500.0,0.00013698,2]
[340438659,1729245062079,-500.0,0.00013698,2]
[340438660,1729245062089,-500.0,0.00013698,2]
[340438661,1729245062100,-1214.85,0.00013698,2]
[340438662,1729245062110,-896.05,0.00013698,2]
[340438663,1729245062120,-500.0,0.00013698,2]
[340438664,1729245062130,-500.0,0.00013698,2]
[340438665,1729245062139,-513.92574206,0.00013698,2]
[340438666,1729245062149,-500.0,0.00013698,2]
[340438667,1729245062158,-1925.95,0.00013698,2]
[340438668,1729245062168,-500.0,0.00013698,2]
[340438669,1729245062178,-500.0,0.00013698,2]
[340438670,1729245062188,-500.0,0.00013698,2]
[340438671,1729245062197,-500.0,0.00013698,2]
[340438672,1729245062207,-528.43416848,0.00013698,2]
[340438673,1729245062216,-500.0,0.00013698,2]
[340438674,1729245062226,-565.93912168,0.00013698,2]
[340438675,1729245062237,-500.0,0.00013698,2]
[340438676,1729245062248,-500.0,0.00013698,2]
[340438677,1729245062259,-500.0,0.00013698,2]
[340438678,1729245062268,-500.0,0.00013698,2]
[340438679,1729245062280,-500.0,0.00013698,2]
[340438680,1729245062289,-500.0,0.00013698,2]
[340438681,1729245062299,-1100.96,0.00013698,2]
[340438682,1729245062309,-510.53219269,0.00013698,2]
[340438683,1729245062319,-500.0,0.00013698,2]
[340438684,1729245062329,-500.0,0.00013698,2]
[340438685,1729245062338,-500.0,0.00013698,2]
[340438686,1729245062347,-500.0,0.00013698,2]
[340438687,1729245062358,-500.0,0.00013698,2]
[340438688,1729245062367,-500.0,0.00013698,2]
[340438689,1729245062377,-500.0,0.00013698,2]
[340438690,1729245062387,-500.0,0.00013698,2]
[340438691,1729245062396,-335.95240982,0.00013698,2]
[340438692,1729245062406,-500.0,0.00013698,2]
[340438693,1729245062415,-518.21913569,0.00013698,2]
[340438694,1729245062424,-500.0,0.00013698,2]
[340438695,1729245062433,-625.46190109,0.00013698,2]
[340438696,1729245062443,-1112.06,0.00013698,2]
[340438697,1729245062452,-500.0,0.00013698,2]
[340438698,1729245062461,-500.0,0.00013698,2]
[340438699,1729245062471,-500.0,0.00013698,2]
[340438700,1729245062483,-942.61,0.00013698,2]
[340438701,1729245062496,-500.0,0.00013698,2]
[340438702,1729245062507,-500.0,0.00013698,2]
[340438703,1729245062518,-694.02,0.00013698,2]
[340438704,1729245062529,-500.0,0.00013698,2]
[340438705,1729245062539,-500.0,0.00013698,2]
[340438706,1729245062549,-500.0,0.00013698,2]
[340438707,1729245062560,-500.0,0.00013698,2]
[340438708,1729245062570,-500.0,0.00013698,2]
[340438709,1729245062581,-500.0,0.00013698,2]
[340438710,1729245062592,-1028.28,0.00013698,2]
[340438711,1729245062601,-500.0,0.00013698,2]
[340438712,1729245062611,-500.0,0.00013698,2]
[340438713,1729245062621,-500.0,0.00013698,2]
[340438714,1729245062631,-500.0,0.00013698,2]
[340438715,1729245062640,-500.0,0.00013698,2]
[340438716,1729245062650,-500.0,0.00013698,2]
[340438717,1729245062660,-511.00964627,0.00013698,2]
[340438718,1729245062671,-500.0,0.00013698,2]
[340438719,1729245062681,-500.0,0.00013698,2]
[340438720,1729245062690,-500.0,0.00013698,2]
[340438721,1729245062700,-500.0,0.00013698,2]
[340438722,1729245062710,-500.0,0.00013698,2]
[340438723,1729245062719,-500.0,0.00013698,2]
[340438724,1729245062729,-500.0,0.00013698,2]
[340438725,1729245062738,-500.0,0.00013698,2]
[340438726,1729245062747,-500.0,0.00013698,2]
[340438727,1729245062756,-500.0,0.00013698,2]
[340438728,1729245062765,-500.0,0.00013698,2]
[340438729,1729245062775,-506.83414055,0.00013698,2]
[340438730,1729245062785,-1032.9,0.00013698,2]
[340438731,1729245062796,-500.0,0.00013698,2]
[340438732,1729245062806,-500.0,0.00013698,2]
[340438733,1729245062815,-500.0,0.00013698,2]
[340438734,1729245062825,-1307.02,0.00013698,2]
[340438735,1729245062835,-500.0,0.00013698,2]
[340438736,1729245062845,-500.0,0.00013698,2]
[340438737,1729245062854,-500.0,0.00013698,2]
[340438738,1729245062863,-500.0,0.00013698,2]
[340438739,1729245062873,-500.0,0.00013698,2]
[340438740,1729245062883,-1007.91,0.00013698,2]
[340438741,1729245062897,-500.0,0.00013698,2]
[340438742,1729245062906,-719.96,0.00013698,2]
[340438743,1729245062918,-872.66,0.00013698,2]
[340438744,1729245062929,-500.0,0.00013698,2]
[340438745,1729245062939,-406.65456661,0.00013698,2]
[340438746,1729245062950,-500.0,0.00013698,2]
[340438747,1729245062960,-500.0,0.00013698,2]
[340438748,1729245062971,-915.43,0.00013698,2]
[340438749,1729245062981,-500.0,0.00013698,2]
[340438750,1729245062989,-500.0,0.00013698,2]
[340438751,1729245063000,-1054.91,0.00013698,2]
[340438752,1729245063009,-500.0,0.00013698,2]
[340438753,1729245063019,-500.0,0.00013698,2]
[340438754,1729245063030,-500.0,0.00013698,2]
[340438755,1729245063039,-500.0,0.00013698,2]
[340438756,1729245063048,-500.0,0.00013698,2]
[340438757,1729245063058,-500.0,0.00013698,2]
[340438758,1729245063068,-500.0,0.00013698,2]
[340438759,1729245063078,-500.0,0.00013698,2]
[340438760,1729245063087,-500.0,0.00013698,2]
[340438761,1729245063097,-531.47,0.00013698,2]
[340438762,1729245063107,-500.0,0.00013698,2]
[340438763,1729245063116,-500.0,0.00013698,2]
[340438764,1729245063126,-500.0,0.00013698,2]
[340438765,1729245063135,-539.31364595,0.00013698,2]
[340438766,1729245063145,-500.0,0.00013698,2]
[340438767,1729245063155,-1046.71,0.00013698,2]
[340438768,1729245063165,-507.35568391,0.00013698,2]
[340438769,1729245063175,-1013.1,0.00013698,2]
[340438770,1729245063184,-510.14698683,0.00013698,2]
[340438771,1729245063193,-500.0,0.00013698,2]
[340438772,1729245063203,-500.0,0.00013698,2]
[340438773,1729245063212,-500.0,0.00013698,2]
[340438774,1729245063222,-500.0,0.00013698,2]
[340438775,1729245063231,-500.0,0.00013698,2]
[340438776,1729245063241,-500.0,0.00013698,2]
[340438777,1729245063251,-500.0,0.00013698,2]
[340438778,1729245063262,-500.0,0.00013698,2]
[340438779,1729245063272,-1107.34,0.00013698,2]
[340438780,1729245063283,-500.0,0.00013698,2]
[340438781,1729245063292,-500.0,0.00013698,2]
[340438782,1729245063301,-1014.96,0.00013698,2]
[340438783,1729245063311,-500.0,0.00013698,2]
[340438784,1729245063320,-500.0,0.00013698,2]
[340438785,1729245063330,-296.32755902,0.00013698,2]
[340438786,1729245063340,-779.88,0.00013698,2]
[340438787,1729245063351,-500.0,0.00013698,2]
[340438788,1729245063361,-500.0,0.00013698,2]
[340438789,1729245063370,-500.0,0.00013698,2]
[340438790,1729245063380,-500.0,0.00013698,2]
[340438791,1729245063389,-675.89,0.00013698,2]
[340438792,1729245063399,-500.0,0.00013698,2]
[340438793,1729245063409,-1425.42,0.00013698,2]
[340438794,1729245063419,-500.0,0.00013698,2]
[340438795,1729245063428,-500.0,0.00013698,2]
[340438796,1729245063440,-500.0,0.00013698,2]
[340438797,1729245063450,-531.05585799,0.00013698,2]
[340438798,1729245063460,-500.0,0.00013698,2]
[340438799,1729245063470,-500.0,0.00013698,2]
[340438800,1729245063479,-858.13,0.00013698,2]
[340438801,1729245063488,-741.88,0.00013698,2]
[340438802,1729245063498,-500.0,0.00013698,2]
[340438803,1729245063509,-500.0,0.00013698,2]
[340438804,1729245063518,-500.0,0.00013698,2]
[340438805,1729245063528,-500.0,0.00013698,2]
[340438806,1729245063702,-1003.38,0.00013698,2]
[340438807,1729245063712,-537.46082624,0.00013698,2]
[340438808,1729245063721,-1103.55,0.00013698,2]
[340438809,1729245063731,-500.0,0.00013698,2]
[340438810,1729245063740,-500.0,0.00013698,2]
[340438811,1729245063749,-500.0,0.00013698,2]